Cogmind - Beta 10.2 @@@ ROGUE MODE // 2021.10.27 @ 17:15:01 Player: Wakanaka Result: Destroyed by Y-45 Defender with Beam Rifle Performance ------------- Evolutions (2) 1000 Regions Visited (5) 1000 Robots Destroyed (26) 130 Value Destroyed (727) 727 Prototype IDs (25) 500 Alien Tech Used (0) 0 Bonus (475) 475 TOTAL SCORE: 3832 Bonus ------- Follower Combat Kills 175 Aligned with FarCom 300 Cogmind --------- Core Integrity 0/550 Matter 282/300 Energy 150/150 System Corruption 2% Temperature Cool (9) Movement Core (150) Ox2 Location -8/Materials Parts ------- > --- POWER (1) -------- Light Angular Momentum Engine > --- PROPULSION (4) --- (None) > --- UTILITY (4) ------ Seismic Analyzer > --- WEAPON (2) ------- (None) > --- INVENTORY (4) ---- Reinforced Ion Engine Light Treads Peak State ------------ > --- POWER ------------ Reinforced Ion Engine > --- PROPULSION ------- Light Treads Light Treads Advanced Treads Advanced Treads > --- UTILITY ---------- Improved Terrain Scanner Seismic Analyzer Targeting Computer Improved ECM Suite > --- WEAPON ----------- Particle Gun Field Lobotomy Kit > --- INVENTORY -------- Hardlight Generator EM Pulse Cannon EM Pulse Cannon Enhanced Autogun [Rating: 30] Favorites ----------- Power Reinforced Ion Engine Engine Reinforced Ion Engine Power Core Light Nuclear Core Propulsion Light Treads Treads Light Treads Leg Carbon-fiber Leg Wheel Wheel Flight Unit Flight Unit Utility Seismic Analyzer Device Improved Terrain Scanner Processor Seismic Analyzer Weapon EM Pulse Cannon Energy Gun EM Pulse Gun Energy Cannon EM Pulse Cannon Ballistic Gun Enhanced Autogun Launcher Grenade Launcher Special Weapon Field Lobotomy Kit Slashing Weapon Makeshift Axe Build | -11 -10 -10 -10 -9 -8 ------- Run | Scr Mat Min Exi Min Mat Slots Evolved 4 | . . . . . 4 Power . | . . . . . . Propulsion 2 | . . . . . 2 Utility 2 | . . . . . 2 Weapon . | . . . . . . Parts Attached 59 | 7 5 . 3 11 33 Power 10 | 1 1 . . 1 7 Engine 8 | 1 1 . . 1 5 Core 2 | . . . . . 2 Reactor . | . . . . . . Propulsion 15 | 2 2 . . 3 8 Treads 7 | . . . . . 7 Leg 1 | . . . . . 1 Wheel 2 | 2 . . . . . Hover . | . . . . . . Flight 5 | . 2 . . 3 . Utility 8 | 2 . . . . 6 Device 5 | 1 . . . . 4 Storage . | . . . . . . Processor 3 | 1 . . . . 2 Hackware . | . . . . . . Protection . | . . . . . . Artifact . | . . . . . . Weapon 26 | 2 2 . 3 7 12 Energy Gun 7 | 1 . . 1 2 3 Energy Cannon 4 | . . . . . 4 Ballistic Gun 8 | 1 1 . 1 1 4 Ballistic Cannon . | . . . . . . Launcher 1 | . 1 . . . . Special Weapon 5 | . . . 1 3 1 Impact Weapon . | . . . . . . Slashing Weapon 1 | . . . . 1 . Piercing Weapon . | . . . . . . Special Melee Weapon . | . . . . . . Unidentified Prototypes 2 | . . . . . 2 Parts Lost 22 | . . . . 6 16 Power 3 | . . . . 1 2 Propulsion 9 | . . . . 3 6 Utility 4 | . . . . 1 3 Weapon 6 | . . . . 1 5 Highest Loss Streak 5 | . . . . 4 5 Average Slot Usage (%) 87 | . 100 100 95 66 90 Engine 8 | . 14 14 14 10 6 Core 1 | . . . . . 2 Treads 19 | . . . . . 28 Flight 7 | . 14 28 28 20 . Device 14 | . 14 14 14 4 17 Processor 16 | . 14 14 14 14 17 Energy Gun 3 | . 14 14 11 2 2 Energy Cannon 6 | . . . . . 9 Ballistic Gun 5 | . 12 14 9 6 4 Special Weapon 1 | . . . 2 4 . Naked Turns . | . . . . . . Heaviest Build 25 | 10 10 8 12 16 25 Greatest Support 84 | 26 26 8 8 8 84 Greatest Overweight (x) 5 | . 1 . 1 3 5 Average Overweight (x) . | . . . . . . Largest Inventory Capacity 4 | 4 4 4 4 4 4 Average Capacity 4 | 4 4 4 4 4 4 Most Carried 4 | 4 4 4 4 4 4 Average Carried 3 | 2 3 4 3 3 3 Final Capacity 4 | 4 4 4 4 4 4 Final Carried 4 | 2 4 4 4 3 2 Class Distribution -------------------- 61% | Scavenger-Skirmisher 19% | Scavenger-Mutant 12% | Mutant 3% | Scavenger-Assassin Dominant Class ---------------- Mutant | -10/Materials Scavenger-Mutant | -10/Mines Scavenger-Mutant | -10/Exiles Mutant | -9/Mines Scavenger-Skirmisher | -8/Materials Resources | -11 -10 -10 -10 -9 -8 ----------- Run | Scr Mat Min Exi Min Mat Matter Collected 883 | 240 92 . . 133 418 Remotely . | . . . . . . Salvage Created 1004 | 28 127 . . 29 820 Parts 62 | 3 13 . . 6 40 Haulers Intercepted 1 | . . . . . 1 Recyclers Shooed 1 | . . . . . 1 Parts Field Recycled . | . . . . . . Retrieved Matter . | . . . . . . Parts Self-Destructed . | . . . . . . Prevented . | . . . . . . Kills | -11 -10 -10 -10 -9 -8 ------- Run | Scr Mat Min Exi Min Mat Combat Hostiles Destroyed 21 | . 3 . . 3 15 Guns 15 | . 3 . . 3 9 Cannons 6 | . . . . . 6 Classes Destroyed 9 | 1 3 . . 1 4 Tunneler 1 | 1 . . . . . Hauler 1 | . . . . . 1 Recycler 1 | . 1 . . . . Watcher 3 | . 1 . . . 2 Swarmer 8 | . 3 . . 2 3 Grunt 6 | . . . . . 6 Brawler 1 | . . . . . 1 Sentry 5 | . . . . . 5 Assembled 1 | . . . . 1 . Best Kill Streak 5 | 1 5 . . 2 3 Combat Bots Only 3 | . 3 . . 2 3 Max Kills in Single Turn 1 | 1 1 . . 1 1 Gunslinging . | . . . . . . Exploded . | . . . . . . Melee . | . . . . . . Uniques/NPCs Destroyed . | . . . . . . Combat | -11 -10 -10 -10 -9 -8 -------- Run | Scr Mat Min Exi Min Mat Damage Taken 2729 | . 79 15 . 418 2217 Core 751 | . 34 . . 159 558 Absorbed by Shields 15 | . . . . . 15 Core Remaining (%) 61 | 100 . . . 22 . Volleys Fired 83 | 1 7 . . 15 60 Largest 2 | 2 2 . . 1 2 Hottest 126 | 60 60 . . 20 126 Shots Fired 119 | 2 10 . . 15 92 Gun 72 | 2 10 . . 12 48 Cannon 42 | . . . . . 42 Launcher . | . . . . . . Special 5 | . . . . 3 2 Kinetic 58 | 1 3 . . 12 42 Thermal 6 | . . . . . 6 Explosive . | . . . . . . Electromagnetic 50 | 1 7 . . . 42 Robot Hit Streak 18 | 1 7 . . 11 18 Robot Miss Streak 3 | . 1 . . 1 3 Penetration Max . | . . . . . . Secondary Targets 2 | . . . . . 2 Max Gunslinging Chain 1 | . . . . . 1 Shots Hit Robots 95 | 1 7 . . 17 70 Core Hits 39 | 1 5 . . 5 28 Critical Hits . | . . . . . . Critical Kills . | . . . . . . Critical Parts Destroyed . | . . . . . . Melee Attacks 7 | . . . . 7 . Impact . | . . . . . . Slashing 7 | . . . . 7 . Piercing . | . . . . . . Sneak Attacks . | . . . . . . Combat Hostiles . | . . . . . . Follow-up Attacks . | . . . . . . Damage Inflicted 1915 | 13 98 . . 346 1458 Guns 795 | 13 98 . . 131 553 Cannons 819 | . . . . . 819 Explosions 86 | . . . . . 86 Melee 215 | . . . . 215 . Ramming . | . . . . . . Kinetic 619 | 13 15 . . 131 460 Thermal 156 | . . . . . 156 Explosive . | . . . . . . Electromagnetic 925 | . 83 . . . 842 Impact . | . . . . . . Slashing 215 | . . . . 215 . Piercing . | . . . . . . Highest Corruption 5 | . . . . 5 2 Average Corruption 2 | . . . . 5 2 Corruption Purged . | . . . . . . Effects 18 | . . . . 5 13 Message Errors 7 | . . . . 3 4 Matter Fused 1 | . . . . 1 . Heat Flow Errors 4 | . . . . . 4 Energy Discharges 1 | . . . . . 1 Data Loss (minor) 4 | . . . . 1 3 Targeting Errors 1 | . . . . . 1 Overload Shots . | . . . . . . Overflow Damage 67 | . . . . 45 22 Projectiles 13 | . . . . . 13 Explosions 9 | . . . . . 9 Melee 45 | . . . . 45 . Knockbacks . | . . . . . . Impact . | . . . . . . Kinetic . | . . . . . . Secondary . | . . . . . . Self-Inflicted Damage . | . . . . . . Shots . | . . . . . . Rammed . | . . . . . . Targets Rammed . | . . . . . . Kicked . | . . . . . . Crushed . | . . . . . . Highest Temperature 310 | . 6 . . 12 310 Average Temperature 78 | . 3 . . 6 83 Received Heat Transfer 970 | . . 9 . 80 881 Effects 1 | . . . . . 1 Energy Bleed 1 | . . . . . 1 Siege Activations . | . . . . . . Robots Corrupted . | . . . . . . Combat Hostiles . | . . . . . . Parts Fried 4 | . . . . . 4 Impact Corruptions . | . . . . . . Robots Melted . | . . . . . . Combat Hostiles . | . . . . . . Parts Melted . | . . . . . . Heat Transferred 255 | . . . . . 255 Parts Sabotaged . | . . . . . . Parts Stolen . | . . . . . . Parts Stripped . | . . . . . . Power Chain Reactions 1 | . . . . . 1 Missiles Intercepted . | . . . . . . Alert | -11 -10 -10 -10 -9 -8 ------- Run | Scr Mat Min Exi Min Mat Peak Influence 265 | 5 108 87 . 50 265 Initial 42 | . 3 42 . . . Average 75 | 2 60 64 . 21 92 Maximum Alert Level 1 | . . . . . 1 Low Security (%) 96 | 100 100 100 . 100 94 Level 1 3 | . . . . . 5 Level 2 . | . . . . . . Level 3 . | . . . . . . Level 4 . | . . . . . . Level 5 . | . . . . . . High Security . | . . . . . . Max Security . | . . . . . . Squads Dispatched 3 | . . . . . 3 Investigation 2 | . . . . . 2 Extermination . | . . . . . . Reinforcement 1 | . . . . . 1 Assault . | . . . . . . Garrison . | . . . . . . Intercept . | . . . . . . Construction Impeded . | . . . . . . Haulers Reinforced . | . . . . . . Stealth | -11 -10 -10 -10 -9 -8 --------- Run | Scr Mat Min Exi Min Mat Distress Signals 3 | . . . . . 3 Communications Jammed . | . . . . . . Distress Signals . | . . . . . . Times Spotted 70 | . 8 2 . 25 35 Peak Tracking Total 9 | . 4 2 . 9 8 Tactical Retreats 9 | . . 1 . 3 5 Traps | -11 -10 -10 -10 -9 -8 ------- Run | Scr Mat Min Exi Min Mat Traps Triggered . | . . . . . . Indirectly . | . . . . . . Trap Hack Attempts . | . . . . . . Triggered . | . . . . . . Disarmed . | . . . . . . Reprogrammed . | . . . . . . Reused . | . . . . . . Traps Extracted . | . . . . . . Installed . | . . . . . . Triggered . | . . . . . . Machines | -11 -10 -10 -10 -9 -8 ---------- Run | Scr Mat Min Exi Min Mat Machines Disabled 4 | . . . . 2 2 Max in Single Turn 2 | . . . . . 2 Machines Sabotaged . | . . . . . . Garrisons Compromised . | . . . . . . Overloaded Fab Kills . | . . . . . . Fab Network Shutdowns . | . . . . . . Hacking | -11 -10 -10 -10 -9 -8 --------- Run | Scr Mat Min Exi Min Mat Machines Accessed 7 | . 3 . 1 . 3 Terminals 5 | . 2 . . . 3 Fabricators . | . . . . . . Repair Stations . | . . . . . . Recycling Units 1 | . 1 . . . . Scanalyzers . | . . . . . . Garrison Access . | . . . . . . Total Hacks 15 | . 7 . 1 . 7 Successful 5 | . 3 . 1 . 1 Failed 10 | . 4 . . . 6 Catastrophic 3 | . . . . . 3 Database Lockouts . | . . . . . . Manual 10 | . 4 . 1 . 5 Terminals 12 | . 5 . . . 7 Fabricators . | . . . . . . Repair Stations . | . . . . . . Recycling Units 2 | . 2 . . . . Scanalyzers . | . . . . . . Garrison Access . | . . . . . . Terminal Hacks 3 | . 1 . 1 . 1 Branch Access Points 2 | . 1 . . . 1 EX-Prototype ID Bank 1 | . . . 1 . . Fabricator Hacks . | . . . . . . Repair Station Hacks . | . . . . . . Recycling Unit Hacks 2 | . 2 . . . . Report Inventory 1 | . 1 . . . . Retrieve Components 1 | . 1 . . . . Scanalyzer . | . . . . . . Garrison Access Hacks . | . . . . . . Unauthorized Hacks . | . . . . . . Terminals . | . . . . . . Fabricators . | . . . . . . Repair Stations . | . . . . . . Recycling Units . | . . . . . . Scanalyzers . | . . . . . . Garrison Access . | . . . . . . Data Cores Recovered . | . . . . . . Used . | . . . . . . Hacking Detections 3 | . . . . . 3 Full Trace Events 2 | . . . . . 2 Feedback Events . | . . . . . . Feedback Blocked . | . . . . . . Robot Schematics Acquired . | . . . . . . Robots Built . | . . . . . . Matter . | . . . . . . Time . | . . . . . . Total Robot Build Rating . | . . . . . . Part Schematics Acquired . | . . . . . . Parts Built . | . . . . . . Matter . | . . . . . . Time . | . . . . . . Total Part Build Rating . | . . . . . . Parts Repaired . | . . . . . . Time . | . . . . . . Parts Recycled . | . . . . . . Recycled Matter . | . . . . . . Retrieved Matter . | . . . . . . Retrieved Components 3 | . 3 . . . . Parts Scanalyzed . | . . . . . . Part Schematics Acquired . | . . . . . . Parts Damaged . | . . . . . . Bothacking | -11 -10 -10 -10 -9 -8 ------------ Run | Scr Mat Min Exi Min Mat Used RIF Installer . | . . . . . . Robots Hacked . | . . . . . . Non-combat . | . . . . . . Combat . | . . . . . . Robot Hacks Applied . | . . . . . . Relay Couplers Released . | . . . . . . Robots Rewired . | . . . . . . Allies Hacked . | . . . . . . Hacks Repelled . | . . . . . . Allies | -11 -10 -10 -10 -9 -8 -------- Run | Scr Mat Min Exi Min Mat Total Allies 4 | . . . . 3 1 Largest Group 3 | . . . . 3 3 Highest-Rated Group 60 | . . . . 60 60 Highest-Rated Ally 34 | . . . . 34 30 Total Orders . | . . . . . . Ally Attacks 31 | . . . . 8 23 Total Damage 915 | . . . . 327 588 Kills 10 | . . . . 3 7 Allies Corrupted . | . . . . . . Allies Melted . | . . . . . . Field Lobotomies 4 | . . . . 3 1 Intel | -11 -10 -10 -10 -9 -8 ------- Run | Scr Mat Min Exi Min Mat Robot Analysis Total . | . . . . . . Derelict Logs Recovered 1 | . . 1 . . . Drone Launches . | . . . . . . Drone Recoveries . | . . . . . . Exploration | -11 -10 -10 -10 -9 -8 ------------- Run | Scr Mat Min Exi Min Mat Turns Passed 2819 | 59 90 172 133 465 1900 Spaces Moved 1914 | 45 107 349 293 446 674 Core 84 | 2 . . . 64 18 Treads 603 | . . . . . 603 Legs 7 | . . . . . 7 Wheels 71 | 43 28 . . . . Hover . | . . . . . . Flight 1149 | . 79 349 293 382 46 Fastest Speed 37 | 50 37 37 37 37 120 Average Speed 97 | 88 52 37 43 83 169 Slowest Speed 360 | 100 120 37 117 280 360 Overloaded Moves . | . . . . . . Propulsion Burnouts . | . . . . . . Robots Hopped . | . . . . . . Cave-ins Triggered 1 | . . . . 1 . Exploration Rate (%) 45 | 3 33 79 50 61 46 Regions Visited 5 Branch Regions 3 Pre-discovered Areas . | . . . . . . Known Exits Taken 1 | . 1 . . . . Unknown Exits Taken 4 | 1 . 1 1 1 . Scrap Searched 2 | . . 1 . 1 . Spaces Dug . | . . . . . . Terrain Destroyed 3 | . . . . . 3 Melee . | . . . . . . Projectile . | . . . . . . AOE 3 | . . . . . 3 Terrain Rammed . | . . . . . . Walls Destroyed . | . . . . . . Machines Disabled . | . . . . . . Actions | -11 -10 -10 -10 -9 -8 --------- Run | Scr Mat Min Exi Min Mat Total 2737 | 61 130 391 300 513 1342 Wait 612 | . 2 43 . 25 542 Move 1908 | 44 106 348 292 444 674 Hop . | . . . . . . Pick Up 39 | 9 5 . 1 5 19 Fast Attach 11 | . 2 . 1 2 6 Attach 27 | 7 . . 2 4 14 Detach 2 | . . . 2 . . Swap 22 | . 3 . . 5 14 Drop 25 | . 5 . 2 5 13 Fire 83 | 1 7 . . 15 60 Melee 7 | . . . . 7 . Ram . | . . . . . . Kick . | . . . . . . Crush . | . . . . . . Escape Stasis 1 | . . . . 1 . Rewire . | . . . . . . Trap . | . . . . . . Miscellaneous . | . . . . . . Route ------- -11/Scrapyard -10/Materials (discovered 2 exits: *Min x2) -10/Mines (discovered 2 exits: [*Mat] / *Exi) -10/Exiles -9/Mines -8/Materials (discovered 1 exit: Fac) History --------- Turn | Location | Event 45 | -11/Scrapyard | Discovered new exit (range 15) 60 | -11/Scrapyard | Entered Materials 145 | -10/Materials | Identified exit to Mines 150 | -10/Materials | Entered Mines 216 | -10/Mines | Learned 2 Materials zone layouts 274 | -10/Mines | Discovered new exit (range 8) 321 | -10/Mines | Deemed a non-threat by the Exiles lab entrance 321 | -10/Mines | Discovered new exit (range 5) 322 | -10/Mines | Entered Exiles 331 | -10/Exiles | Met 8R-AWN 338 | -10/Exiles | Met EX-HEX 350 | -10/Exiles | Met EX-BIN 355 | -10/Exiles | Aligned with FarCom system 355 | -10/Exiles | Given EX-Vault access code 364 | -10/Exiles | Opened EX-Vault 367 | -10/Exiles | Found Field Lobotomy Kit 387 | -10/Exiles | Warned to stay clear of 0b10 Research branches 392 | -10/Exiles | Build established: Scavenger-Mutant 427 | -10/Exiles | Met EX-DEC 449 | -10/Exiles | Discovered new exit (range 14) 455 | -10/Exiles | Left Exiles lab with Field Lobotomy Kit 455 | -10/Exiles | Entered Mines 457 | -9/Mines | Met a Derelict bent on vengeance 485 | -9/Mines | Discovered new exit (range 15) 518 | -9/Mines | A weapon hastily lodged in a ceiling crevice suddenly fell to the ground 558 | -9/Mines | Assembled infested the area 607 | -9/Mines | Core integrity fell below 50% 617 | -9/Mines | Assimilated D-53 Grenadier with FLK Orb 661 | -9/Mines | Lost 4 parts (1p2n1u) 681 | -9/Mines | Crushed by falling debris 884 | -9/Mines | Assimilated Y-45 Defender with FLK Orb 887 | -9/Mines | Assimilated Y-45 Defender with FLK Orb 920 | -9/Mines | Entered Materials 920 | -8/Materials | Accompanied by 3 allies 920 | -8/Materials | Evolved 4 slots: Propulsion x2, Utility x2 921 | -8/Materials | Identified exit to Factory 1107 | -8/Materials | Assimilated Y-45 Defender with FLK Orb 1418 | -8/Materials | Build established: Scavenger-Skirmisher 2618 | -8/Materials | Core integrity fell below 50% 2671 | -8/Materials | Lost 5 parts (3n1u1w) 2749 | -8/Materials | Lost 4 parts (1p1n1u1w) 2788 | -8/Materials | Core integrity fell below 20% 2820 | -8/Materials | Destroyed by Y-45 Defender with Beam Rifle Last Messages --------------- 02708_ Lgt. Treads destroyed. 02710_ Lgt. Deuterium Engine destroyed. 02718_ Hardlight Generator destroyed. 02720_ K-01 Serf collects debris. 02722_ G-50 Soldier destroyed. 02737_ Acquired 52 matter. 02742_ Acquired Carbon-fiber Leg. 02745_ Acquired Lgt. Angular Momentum Engine. 02784_ Imp. Terrain Scanner destroyed. 02789_ System corrupted: Hvy. Assault Rifle targeting data glitched. 02789_ Y-45 Defender destroyed. 02791_ Acquired Beam Rifle. 02797_ Beam Rifle destroyed. 02800_ Carbon-fiber Leg destroyed. 02801_ Y-45 Defender destroyed. 02802_ Acquired 56 matter. 02804_ Hvy. Assault Rifle destroyed. 02807_ Discarded Transport Network Coupler. 02809_ Acquired Lgt. Treads. [Achievement: Back For More] Map ----- +----------------------------------------------------+ | ?###### #############+########?######?? | | ####### ############ ##???#?#?#???? | | #?##### + ##?###?###?#?? | | ###?### ############ ###########??#??? | | #########+############### # #####??? | | ####### ##### !##### + """""#??###?? | | ####### !% # """""####???? | | ####### !! # """""####???? | | #####?# ##### ##### # """""#??#???? | | ######## #######+####### # """""####???? | | # # #### ### # """""#?##???? | | ?# """ # #### """ ### # """""##?##??? | | ? # """ + #### """ ### # #?#????? | | ### """ # ####? """ ### ############????? | | ### # #### ### ###?##???????#??? | | #?# # #### """ #?# #############???? | | ### ! ! # #### """ ### ## """ """ ##???? | | ########## #### """ !### ## """ """ #?#??? | | #######?##] #?## ## # """ """ ##???? | | # #### ############## # #?#??? | | %== ############# % + #????? | | [%*%[ g ! # #????? | | =! % ############## ## #?#??# | | #%! #########?#?## #[ ## #??##? | | ##=#########?####### Yg% ############?#??# | | ## #?## ##### @#! ## #?????? | | ## #### """ ###?# # ## """ #?????? | | ## #?## """ #?#?# # ## """ #?##??? | | ## #??# """ ###?# # ## """ #?#??#? | | ?# #?## #?########## ## ###???? | | # ### """#?###?###?## ## """ ####??? | | ? / R"#??#?####??# ## """ #????## | | # ### """##????#??### ## """ #?#?#?# | | ##+##?# %! #######?##?# ## #??#??? | | ?####/######### "###### #####+#########?# | | " # ##?#?# | | " # ##??## | | ??? # % ##?#?# | | ? ?# ########?? | | ##### """ """ # ##? | | = # % """ """ # """ ##? | | %[ # """ """ + """ ### | | ! !#== %% # """ #?# | | [+%=! % # #?? | | !#=% #? #?? | | !! ##T##T## ############+#########?? | | !! ######## # # #??#??? | | %! #####??# # # ###???# | | #####???##?# !# [ # """ ####### | | ?###?###?### *%# !! # """"" #?###?# | +----------------------------------------------------+ Best States ------------- Heat Dissipation 31 Energy Generation 18 Energy Capacity 265 Matter Stores 300 Matter Capacity 300 Sight Range 16 Terrain Scan Range 16 Terrain Scan Density 60 ECM Strength 2 Evasion (%) 62 Targeting Accuracy 5 Recoil Reduction 4 Item Schematics ----------------- None Robot Schematics ------------------ None Fabricated ------------ Nothing Alien Tech Used ----------------- None Achievements -------------- Back For More Challenges ------------ None Game ------ Seed ImpulseBarrageChronowheel Manual? 0 Play Time 00:39:55 Cumulative 40.6 hours Start 2021.10.27 @ 16:34:31 End 2021.10.27 @ 17:15:01 Sessions 1 Manual Loads 0 Difficulty Rogue Special Mode None Game No. 50 Rogue 50 Adventurer 0 Explorer 0 Win Type - Total 0 Types 0/0/0/0/0/0/0/0/0 Lore% 24 Gallery% 34 Achievement% 24 Wizard Run 0 Options --------- ASCII 0 Keyboard 0 Movement Mouse Keybinds 0 Fullscreen 1 Font 18/SmallcapsGlow Map View 76x50 Tactical HUD 1 Map Filters NONE Filters NONE Steam 1 RUN: d8ddc94a-12ed-46ae-8a1f-0f55fff6a3a3